fUST/lending_fUST_20260427
["ID","MTS","AMOUNT","RATE_DAILY","PERIOD"]
[421191596,1777228238948,-500.0,0.00015897,2]
[421191598,1777228238958,-500.0,0.00015897,2]
[421191600,1777228238968,-500.0,0.00015897,2]
[421191602,1777228238978,-237.85376041,0.00015897,2]
[421191607,1777228239017,-262.14623959,0.00015897,2]
[421191609,1777228239027,-500.0,0.00015897,2]
[421191611,1777228239036,-203.033706,0.00015897,2]
[421191613,1777228239047,-500.0,0.00015897,2]
[421191615,1777228239057,-500.0,0.00015897,2]
[421191617,1777228239067,-500.0,0.00015897,2]
[421191618,1777228239077,-500.0,0.00015897,2]
[421191620,1777228239087,-500.0,0.00015897,2]
[421191622,1777228239097,-500.0,0.00015897,2]
[421191624,1777228239107,-500.0,0.00015897,2]
[421191626,1777228239117,-500.0,0.00015897,2]
[421191629,1777228239128,-416.88757013,0.00015897,2]
[421191632,1777228239152,-83.11242987,0.00015897,2]
[421191634,1777228239162,-500.0,0.00015897,2]
[421191636,1777228239172,-500.0,0.00015897,2]
[421191638,1777228239182,-500.0,0.00015897,2]
[421191640,1777228239192,-500.0,0.00015897,2]
[421191642,1777228239202,-500.0,0.00015897,2]
[421191644,1777228239212,-500.0,0.00015897,2]
[421191646,1777228239222,-500.0,0.00015897,2]
[421191648,1777228239232,-6135.26080853,0.000159,2]
[421191650,1777228239244,-1263224.48438921,0.000159,2]
[421191652,1777228239257,-14367.51518706,0.000159,2]
[421191656,1777228239288,-5186.01910437,0.000159,2]
[421191657,1777228239301,-7293.53089616,0.000159,2]
[421191672,1777228241062,-12304.00048877,0.000159,2]
[421191673,1777228241073,-5617.35999688,0.000159,2]
[421191674,1777228241087,-1631.0,0.000159,2]
[421191695,1777228244787,-3232.90007557,0.000159,2]
[421191697,1777228244964,-2117.33197332,0.000159,2]
[421191716,1777228247088,-1443.25030795,0.000159,2]
[421191722,1777229182229,1000.0,0.00025199,120]
[421191723,1777229199527,1000.0,0.00024658,120]
[421191724,1777229229357,1000.0,0.00025199,120]
[421191926,1777229438829,-5000.0,0.00012362,10]
[421191927,1777229438840,-3117.56977357,0.00012609,2]
[421191928,1777229438849,-164.86505668,0.00012709,2]
[421191929,1777229438859,-600.0,0.00012709,2]
[421191930,1777229438869,-500.0,0.00012999,2]
[421191931,1777229438879,-500.0,0.00012999,2]
[421191932,1777229438891,-500.0,0.00012999,2]
[421191933,1777229438901,-479.12745304,0.00012999,2]
[421191934,1777229438912,-500.0,0.00012999,2]
[421191935,1777229438921,-500.0,0.00012999,2]
[421191936,1777229438931,-500.0,0.00012999,2]
[421191937,1777229438941,-500.0,0.00012999,2]
[421191938,1777229438952,-500.0,0.00012999,2]
[421191939,1777229438962,-364.64080165,0.00012999,2]
[421191940,1777229438974,-135.35919835,0.00012999,2]
[421191941,1777229438984,-500.0,0.00012999,2]
[421191942,1777229438994,-500.0,0.00012999,2]
[421191943,1777229439004,-500.0,0.00012999,2]
[421191944,1777229439014,-361.65417794,0.00012999,2]
[421191945,1777229439024,-406.03123649,0.00012999,2]
[421191946,1777229439034,-246.55570522,0.00012999,2]
[421191947,1777229439046,-500.0,0.00012999,2]
[421191948,1777229439057,-338.98740981,0.00012999,2]
[421191949,1777229439067,-142995.93723516,0.00013,2]
[421191950,1777229439080,-473.57376399,0.00013,2]
[421191987,1777229443736,-5000.0,0.0001287,10]
[421191988,1777229443746,-5000.0,0.00013,2]
[421191989,1777229443762,-819.51562325,0.00013,2]
[421192005,1777229446863,-3949.9733776,0.00013,2]
[421192006,1777229446872,-2782.90027652,0.00013598,2]
[421192007,1777229446882,-785.87,0.00013698,2]
[421192008,1777229446891,-785.87,0.00013698,2]
[421192009,1777229446900,-785.87,0.00013698,2]
[421192010,1777229446910,-785.87,0.00013698,2]
[421192011,1777229446919,-785.87,0.00013698,2]
[421192012,1777229446928,-785.87,0.00013698,2]
[421192013,1777229446938,-785.87,0.00013698,2]
[421192015,1777229446948,-785.87,0.00013698,2]
[421192017,1777229446958,-1000.0,0.00013699,2]
[421192018,1777229446968,-2782.9002765,0.00014537,2]
[421192020,1777229446977,-194.54076688,0.00014709,2]
[421192021,1777229446986,-500.0,0.00015291,2]
[421192022,1777229446996,-500.0,0.00015291,2]
[421192023,1777229447006,-2162.72529976,0.00015477,2]
[421192197,1777230046407,1000.0,7.6e-05,2]
[421192228,1777230342004,-1200.0,7.523e-05,2]
[421192229,1777230342025,-300.0,7.523e-05,2]
[421192230,1777230342045,-526.0,7.523e-05,2]
[421192231,1777230342068,-5000.0,7.524e-05,2]
[421192232,1777230342089,-441.0,7.6e-05,2]
[421192233,1777230342114,-200.0,9.526e-05,2]
[421192234,1777230342136,-161.46934532,0.00010257,2]
[421192235,1777230342158,-190.53382748,0.00012257,2]
[421192236,1777230342180,-152.0,0.00013212,7]
[421192237,1777230342203,-152.0,0.00013212,7]
[421192238,1777230342223,-229.0716075,0.00013413,2]
[421192239,1777230342244,-232.3581241,0.00013413,2]
[421192240,1777230342264,-536.18,0.00013698,2]
[421192241,1777230342285,-500.0,0.00013698,2]
[421192242,1777230342304,-234.30868264,0.00013698,2]
[421192243,1777230342326,-156.0,0.00013699,2]
[421192244,1777230342346,-1000.0,0.00013699,2]
[421192245,1777230342369,-400.46054875,0.000138,2]
[421192246,1777230342391,-219.59830964,0.00014257,2]
[421192247,1777230342411,-229.0716075,0.00015179,2]
[421192248,1777230342432,-325.4528442,0.00015274,2]
[421192249,1777230342452,-325.4780488,0.00015274,2]
[421192250,1777230342474,-325.0215396,0.00015288,2]
[421192251,1777230342494,-151.0,0.00015288,2]
[421192252,1777230342515,-1816.83454494,0.00015859,2]
[421192253,1777230342536,-419.76525076,0.00015859,2]
[421192254,1777230342559,-500.0,0.00015859,2]
[421192255,1777230342581,-500.0,0.00015859,2]
[421192256,1777230342604,-476.03563953,0.00015859,2]
[421192257,1777230342626,-500.0,0.00015859,2]
[421192258,1777230342648,-173.99804857,0.00015859,2]
[421192259,1777230342672,-500.0,0.00015859,2]
[421192260,1777230342695,-1170.26326267,0.0001586,2]
[421192263,1777230430147,-152.0,0.00012276,7]
[421192264,1777230430173,-152.0,0.00012276,7]
[421192265,1777230430196,-157.07737913,0.00012888,2]
[421192266,1777230430218,-151.0,0.000135,2]
[421192267,1777230430239,-612.0,0.000135,2]
[421192268,1777230430260,-151.0,0.000144,2]
[421192269,1777230430285,-185.35130737,0.00014888,2]
[421192270,1777230430309,-151.0,0.000152,2]
[421192271,1777230430332,-4629.13857925,0.00015701,2]
[421192272,1777230430353,-300.0,0.00015859,2]
[421192273,1777230430376,-117032.50195273,0.0001586,2]
[421192274,1777230430400,-23732.57416152,0.0001586,2]
[421192275,1777230440141,-152.0,0.00014254,7]
[421192276,1777230440173,-152.0,0.00014254,7]
[421192277,1777230440201,-5000.0,0.00015701,2]
[421192278,1777230440233,-18041.988579,0.0001586,2]
[421192301,1777230638912,-1000.0,0.00013699,2]
[421192302,1777230638922,-1000.38884425,0.00015763,2]
[421192303,1777230638934,-589.34138259,0.00015763,2]
[421192304,1777230638943,-267.27,0.00015826,2]
[421192305,1777230638953,-152.0,0.00015834,7]
[421192306,1777230638962,-1200.0,0.00015859,2]
[421192307,1777230638971,-29341.90951405,0.0001586,2]
[421192308,1777230638983,-20269.53440604,0.0001586,2]
[421192309,1777230638992,-269.25,0.00015866,2]
[421192310,1777230639002,-523.91,0.00015899,2]
[421192311,1777230639011,-152.0,0.00015903,7]
[421192312,1777230639021,-273.28,0.0001595,2]
[421192313,1777230639031,-523.91,0.00015959,2]
[421192314,1777230639040,-523.91,0.00015959,2]
[421192315,1777230639050,-523.91,0.00015959,2]
[421192316,1777230639060,-523.91,0.00015959,2]
[421192317,1777230639070,-523.91,0.00015959,2]
[421192318,1777230639079,-523.91,0.00015959,2]
[421192319,1777230639088,-523.91,0.00015989,2]
[421192320,1777230639098,-523.91,0.00015989,2]
[421192321,1777230639107,-523.91,0.00015989,2]
[421192322,1777230639117,-523.91,0.00015989,2]
[421192323,1777230639127,-523.91,0.00015989,2]
[421192324,1777230639136,-3000.0,0.00016,2]
[421192325,1777230639146,-151.0,0.00016,2]
[421192326,1777230639156,-151.0,0.00016,2]
[421192327,1777230639166,-3000.0,0.0001601,2]
[421192328,1777230639176,-3000.0,0.0001602,2]
[421192329,1777230639185,-3000.0,0.0001603,2]
[421192330,1777230639195,-3000.0,0.0001604,2]
[421192331,1777230639204,-3000.0,0.0001605,2]
[421192332,1777230639214,-523.91,0.00016059,2]
[421192333,1777230639223,-3000.0,0.0001606,2]
[421192334,1777230639233,-280.52,0.00016064,2]
[421192335,1777230639243,-3000.0,0.0001607,2]
[421192336,1777230639252,-3000.0,0.0001608,2]
[421192337,1777230639262,-3000.0,0.0001609,2]
[421192338,1777230639271,-168.14741635,0.000161,2]
[421192339,1777230639281,-3000.0,0.000161,2]
[421192340,1777230639291,-3000.0,0.0001611,2]
[421192341,1777230639301,-523.91,0.00016119,2]
[421192342,1777230639310,-3000.0,0.0001612,2]
[421192343,1777230639320,-551.6433089,0.0001612,2]
[421192344,1777230639330,-3000.0,0.0001613,2]
[421192345,1777230639340,-4519.51838,0.0001614,2]
[421192346,1777230639350,-455.9452987,0.00016141,2]
[421192347,1777230639360,-5000.0,0.00016164,2]
[421192348,1777230639371,-287.29,0.00016203,2]
[421192349,1777230639380,-185.0,0.00016285,2]
[421192350,1777230639390,-168.14741635,0.000163,2]
[421192351,1777230639399,-151.0,0.000163,2]
[421192352,1777230639409,-319.52,0.00016365,2]
[421192353,1777230639419,-1589.73022678,0.00016393,2]
[421192354,1777230639428,-293.83567553,0.00016409,2]
[421192355,1777230639438,-523.91,0.0001641,2]
[421192356,1777230639448,-5000.0,0.00016411,2]
[421192357,1777230639457,-168.14741635,0.000165,2]
[421192358,1777230639467,-151.0,0.000166,2]
[421192359,1777230639477,-5000.0,0.0001663,2]
[421192360,1777230639487,-200.3,0.00016677,7]
[421192361,1777230639496,-382.46,0.00016837,2]
[421192362,1777230639506,-329.29,0.00016838,2]
[421192363,1777230639515,-5000.0,0.00016877,2]
[421192364,1777230639524,-523.91,0.00016879,2]
[421192365,1777230639535,-16445.79953755,0.0001688,2]
[421192366,1777230639544,-213.62523561,0.00016888,2]
[421192367,1777230639554,-151.0,0.000169,2]
[421192368,1777230639563,-151.0,0.000169,2]
[421192369,1777230639573,-229.0716075,0.00016944,2]
[421192370,1777230639582,-455.9061778,0.00016967,2]
[421192371,1777230639592,-1589.73022678,0.00017023,2]
[421192372,1777230639601,-5000.0,0.00017096,2]
[421192373,1777230639611,-523.91,0.00017177,2]
[421192374,1777230639620,-299.0,0.00017178,2]
[421192375,1777230639630,-299.0,0.00017178,2]
[421192376,1777230639640,-299.0,0.00017178,2]
[421192377,1777230639650,-299.0,0.00017178,2]
[421192378,1777230639660,-299.0,0.00017178,2]
[421192379,1777230639670,-299.0,0.00017178,2]
[421192380,1777230639678,-151.0,0.000172,2]
[421192381,1777230639687,-5000.0,0.00017342,2]
[421192382,1777230639696,-151.5,0.0001748,2]
[421192383,1777230639705,-5000.0,0.00017562,2]
[421192384,1777230639714,-151.0,0.000176,2]
[421192385,1777230639723,-1589.73022678,0.00017653,2]
[421192386,1777230639732,-151.0,0.000177,2]
[421192387,1777230639740,-1017.89,0.00017808,2]
[421192388,1777230639749,-151.0,0.000179,2]
[421192389,1777230639759,-523.91,0.00017999,2]
[421192390,1777230639768,-3967.1901751,0.00018,30]
[421192391,1777230639778,-151.0,0.000182,2]
[421192392,1777230639787,-1589.73022678,0.00018283,2]
[421192393,1777230639796,-340.70443674,0.000183,2]
[421192394,1777230639805,-955.51696723,0.000183,2]
[421192395,1777230639814,-151.0,0.000185,2]
[421192396,1777230639824,-151.0,0.000186,2]
[421192397,1777230639833,-217.417,0.00018626,2]
[421192398,1777230639842,-229.0716075,0.0001871,2]
[421192399,1777230639852,-241.89916386,0.00018888,2]
[421192400,1777230639862,-523.91,0.00018899,2]
[421192401,1777230639871,-17917.193677,0.000189,2]
[421192402,1777230639881,-151.0,0.000189,2]
[421192403,1777230639891,-151.0,0.000189,2]
[421192404,1777230639900,-1589.73022678,0.00018913,2]
[421192405,1777230639910,-523.91,0.00018999,2]
[421192406,1777230639920,-523.91,0.00018999,2]
[421192407,1777230639930,-523.91,0.00018999,2]
[421192408,1777230639940,-523.91,0.00018999,2]
[421192409,1777230639950,-523.9929787,0.00018999,2]
[421192410,1777230639959,-491.18025982,0.00019,2]
[421192411,1777230639969,-234.0,0.00019,2]
[421192412,1777230639981,-554.0,0.00019,2]
[421192413,1777230639991,-1012.0,0.00019,2]
[421192414,1777230640001,-603.0,0.00019,2]
[421192415,1777230640011,-207.0,0.00019,2]
[421192416,1777230640021,-169.13095676,0.00019,2]
[421192417,1777230640032,-3876.0,0.00019,2]
[421192418,1777230640042,-1023.83307688,0.00019063,2]
[421192419,1777230640052,-165.291206,0.0001911,7]
[421192420,1777230640062,-160.0,0.0001911,2]
[421192421,1777230640072,-1115.840305,0.0001911,2]
[421192422,1777230640082,-2071.680611,0.0001911,2]
[421192423,1777230640093,-421.503745,0.0001911,7]
[421192424,1777230640103,-32312.98366582,0.00019178,2]
[421192425,1777230640114,-2061.311,0.00019178,2]
[421192426,1777230640124,-26002.999281,0.00019178,2]
[421192427,1777230640133,-620.88997,0.00019178,2]
[421192428,1777230640144,-500.0,0.00019178,2]
[421192429,1777230640153,-500.0,0.00019178,2]
[421192430,1777230640163,-500.0,0.00019178,2]
[421192431,1777230640173,-1335.26,0.00019178,2]
[421192432,1777230640183,-588.0,0.00019178,2]
[421192433,1777230640193,-383.59740042,0.00019178,2]
[421192434,1777230640202,-500.0,0.00019178,2]
[421192435,1777230640212,-500.0,0.00019178,2]
[421192436,1777230640222,-1112.5,0.00019178,2]
[421192437,1777230640233,-1064.97,0.00019178,2]
[421192438,1777230640243,-500.0,0.00019178,2]
[421192439,1777230640252,-500.0,0.00019178,2]
[421192440,1777230640262,-500.0,0.00019178,2]
[421192441,1777230640272,-1715.77,0.00019178,2]
[421192442,1777230640282,-500.0,0.00019178,2]
[421192443,1777230640291,-1727.53,0.00019178,2]
[421192444,1777230640301,-739.09,0.00019178,2]
[421192446,1777230640310,-514.86,0.00019178,2]
[421192447,1777230640320,-500.0,0.00019178,2]
[421192448,1777230640330,-500.0,0.00019178,2]
[421192449,1777230640340,-3157.09,0.00019178,2]
[421192450,1777230640349,-500.0,0.00019178,2]
[421192451,1777230640359,-211.30745266,0.00019178,2]
[421192452,1777230640369,-500.0,0.00019178,2]
[421192453,1777230640378,-493.84805551,0.00019178,2]
[421192454,1777230640387,-500.0,0.00019178,2]
[421192455,1777230640397,-500.0,0.00019178,2]
[421192456,1777230640406,-500.0,0.00019178,2]
[421192457,1777230640416,-500.0,0.00019178,2]
[421192458,1777230640427,-500.0,0.00019178,2]
[421192459,1777230640437,-500.0,0.00019178,2]
[421192460,1777230640447,-653.16,0.00019178,2]
[421192461,1777230640456,-500.0,0.00019178,2]
[421192462,1777230640466,-591.14036198,0.00019178,2]
[421192463,1777230640475,-500.0,0.00019178,2]
[421192464,1777230640485,-642.62,0.00019178,2]
[421192466,1777230640495,-296.29731406,0.00019178,2]
[421192467,1777230640505,-1693.78,0.00019178,2]
[421192469,1777230640514,-500.0,0.00019178,2]
[421192470,1777230640524,-500.0,0.00019178,2]
[421192471,1777230640533,-263.34780387,0.00019178,2]
[421192472,1777230640543,-545.88702864,0.00019178,2]
[421192473,1777230640553,-500.0,0.00019178,2]
[421192474,1777230640562,-500.0,0.00019178,2]
[421192475,1777230640572,-539.04,0.00019178,2]
[421192476,1777230640582,-500.0,0.00019178,2]
[421192477,1777230640591,-500.0,0.00019178,2]
[421192478,1777230640601,-500.0,0.00019178,2]
[421192479,1777230640610,-500.0,0.00019178,2]
[421192480,1777230640620,-513.74651357,0.00019178,2]
[421192481,1777230640629,-531.9280075,0.00019178,2]
[421192482,1777230640638,-500.0,0.00019178,2]
[421192483,1777230640648,-1153.96,0.00019178,2]
[421192484,1777230640657,-2680.06,0.00019178,2]
[421192485,1777230640667,-1070.12,0.00019178,2]
[421192486,1777230640676,-500.0,0.00019178,2]
[421192487,1777230640686,-500.0,0.00019178,2]
[421192488,1777230640695,-500.0,0.00019178,2]
[421192489,1777230640705,-397.4370454,0.00019178,2]
[421192490,1777230640715,-500.0,0.00019178,2]
[421192491,1777230640724,-500.0,0.00019178,2]
[421192492,1777230640733,-500.0,0.00019178,2]
[421192493,1777230640743,-500.0,0.00019178,2]
[421192494,1777230640752,-728.22,0.00019178,2]
[421192495,1777230640762,-536.17835016,0.00019178,2]
[421192497,1777230640771,-500.0,0.00019178,2]
[421192498,1777230640780,-2816.2,0.00019178,2]
[421192500,1777230640790,-500.0,0.00019178,2]
[421192502,1777230640800,-500.0,0.00019178,2]
[421192504,1777230640809,-1236.06,0.00019178,2]
[421192506,1777230640818,-317.8868176,0.00019178,2]
[421192507,1777230640827,-500.0,0.00019178,2]
[421192508,1777230640837,-500.0,0.00019178,2]
[421192510,1777230640847,-692.58,0.00019178,2]
[421192512,1777230640856,-633.21466945,0.00019178,2]
[421192513,1777230640866,-500.0,0.00019178,2]
[421192515,1777230640875,-500.0,0.00019178,2]
[421192517,1777230640885,-500.0,0.00019178,2]
[421192519,1777230640895,-500.0,0.00019178,2]
[421192521,1777230640904,-500.0,0.00019178,2]
[421192522,1777230640914,-500.0,0.00019178,2]
[421192524,1777230640925,-500.0,0.00019178,2]
[421192526,1777230640935,-541.93235501,0.00019178,2]
[421192528,1777230640945,-500.0,0.00019178,2]
[421192530,1777230640955,-500.0,0.00019178,2]
[421192531,1777230640965,-500.0,0.00019178,2]
[421192533,1777230640975,-500.0,0.00019178,2]
[421192535,1777230640984,-500.0,0.00019178,2]
[421192537,1777230640994,-2607.9,0.00019178,2]
[421192538,1777230641004,-500.0,0.00019178,2]
[421192540,1777230641013,-1158.6,0.00019178,2]
[421192542,1777230641023,-500.0,0.00019178,2]
[421192544,1777230641033,-2382.84,0.00019178,2]
[421192546,1777230641043,-544.43,0.00019178,2]
[421192548,1777230641052,-500.0,0.00019178,2]
[421192549,1777230641062,-500.0,0.00019178,2]
[421192550,1777230641072,-500.0,0.00019178,2]
[421192551,1777230641082,-1636.45,0.00019178,2]
[421192552,1777230641091,-500.0,0.00019178,2]
[421192553,1777230641101,-550.62898023,0.00019178,2]
[421192554,1777230641111,-500.0,0.00019178,2]
[421192555,1777230641120,-1800.63,0.00019178,2]
[421192556,1777230641130,-500.0,0.00019178,2]
[421192558,1777230641140,-500.0,0.00019178,2]
[421192559,1777230641150,-500.0,0.00019178,2]
[421192561,1777230641166,-151.0,0.00019178,2]
[421192563,1777230641187,-151.0,0.00019178,2]
[421192565,1777230641205,-186.3346,0.00019178,2]
[421192567,1777230641215,-500.0,0.00019178,2]
[421192570,1777230641225,-1210.03,0.00019178,2]
[421192572,1777230641235,-500.0,0.00019178,2]
[421192574,1777230641244,-1603.27,0.00019178,2]
[421192576,1777230641254,-500.0,0.00019178,2]
[421192578,1777230641263,-500.0,0.00019178,2]
[421192580,1777230641273,-888.87,0.00019178,2]
[421192582,1777230641283,-500.0,0.00019178,2]
[421192584,1777230641292,-500.0,0.00019178,2]
[421192586,1777230641302,-500.0,0.00019178,2]
[421192588,1777230641312,-500.0,0.00019178,2]
[421192590,1777230641322,-1728.17,0.00019178,2]
[421192592,1777230641331,-500.0,0.00019178,2]
[421192593,1777230641341,-500.0,0.00019178,2]
[421192595,1777230641351,-500.0,0.00019178,2]
[421192597,1777230641360,-500.0,0.00019178,2]
[421192600,1777230641371,-500.0,0.00019178,2]
[421192602,1777230641381,-757.47,0.00019178,2]
[421192604,1777230641391,-541.39,0.00019178,2]
[421192606,1777230641402,-510.42393139,0.00019178,2]
[421192608,1777230641413,-6085.19,0.00019178,2]
[421192610,1777230641422,-368.59558946,0.00019178,2]
[421192612,1777230641433,-500.0,0.00019178,2]
[421192614,1777230641443,-497.17007591,0.00019178,2]
[421192616,1777230641453,-2406.89,0.00019178,2]
[421192618,1777230641465,-496.6148476,0.00019178,2]
[421192620,1777230641475,-500.0,0.00019178,2]
[421192622,1777230641484,-500.0,0.00019178,2]
[421192624,1777230641494,-500.0,0.00019178,2]
[421192625,1777230641504,-561.16,0.00019178,2]
[421192628,1777230641515,-500.0,0.00019178,2]
[421192630,1777230641525,-500.0,0.00019178,2]
[421192632,1777230641535,-605.86,0.00019178,2]
[421192634,1777230641545,-597.82,0.00019178,2]
[421192636,1777230641555,-500.0,0.00019178,2]
[421192638,1777230641564,-500.0,0.00019178,2]
[421192640,1777230641574,-500.0,0.00019178,2]
[421192642,1777230641584,-500.0,0.00019178,2]
[421192644,1777230641593,-500.0,0.00019178,2]
[421192646,1777230641603,-500.0,0.00019178,2]
[421192648,1777230641613,-500.0,0.00019178,2]
[421192650,1777230641623,-500.0,0.00019178,2]
[421192652,1777230641634,-500.0,0.00019178,2]
[421192654,1777230641644,-517.05,0.00019178,2]
[421192656,1777230641654,-500.0,0.00019178,2]
[421192658,1777230641664,-2256.1,0.00019178,2]
[421192660,1777230641673,-500.0,0.00019178,2]
[421192662,1777230641683,-500.0,0.00019178,2]
[421192664,1777230641693,-500.0,0.00019178,2]
[421192666,1777230641702,-2179.71,0.00019178,2]
[421192668,1777230641712,-865.79,0.00019178,2]
[421192670,1777230641721,-500.0,0.00019178,2]
[421192672,1777230641731,-500.0,0.00019178,2]
[421192674,1777230641741,-1108.81,0.00019178,2]
[421192676,1777230641750,-500.0,0.00019178,2]
[421192678,1777230641760,-500.0,0.00019178,2]
[421192680,1777230641770,-500.0,0.00019178,2]
[421192682,1777230641780,-631.07,0.00019178,2]
[421192684,1777230641790,-1424.69,0.00019178,2]
[421192686,1777230641800,-500.0,0.00019178,2]
[421192688,1777230641810,-500.0,0.00019178,2]
[421192690,1777230641821,-500.0,0.00019178,2]
[421192692,1777230641830,-500.0,0.00019178,2]
[421192694,1777230641841,-222.27778422,0.00019178,2]
[421192696,1777230641851,-500.0,0.00019178,2]
[421192698,1777230641861,-1020.97,0.00019178,2]
[421192700,1777230641871,-500.0,0.00019178,2]
[421192702,1777230641880,-500.0,0.00019178,2]
[421192704,1777230641890,-630.44268967,0.00019178,2]
[421192706,1777230641900,-629.79119885,0.00019178,2]
[421192708,1777230641910,-500.0,0.00019178,2]
[421192710,1777230641920,-480.26806408,0.00019178,2]
[421192712,1777230641929,-500.0,0.00019178,2]
[421192714,1777230641939,-558.22,0.00019178,2]
[421192716,1777230641949,-970.18,0.00019178,2]
[421192718,1777230641959,-500.0,0.00019178,2]
[421192720,1777230641969,-500.0,0.00019178,2]
[421192722,1777230641979,-500.0,0.00019178,2]
[421192724,1777230641989,-679.89,0.00019178,2]
[421192726,1777230641998,-957.19,0.00019178,2]
[421192728,1777230642008,-2247.81,0.00019178,2]
[421192730,1777230642018,-500.0,0.00019178,2]
[421192732,1777230642029,-500.0,0.00019178,2]
[421192735,1777230642039,-500.0,0.00019178,2]
[421192737,1777230642050,-1018.83,0.00019178,2]
[421192739,1777230642060,-641.33950736,0.00019178,2]
[421192741,1777230642070,-1112.73,0.00019178,2]
[421192743,1777230642082,-500.0,0.00019178,2]
[421192745,1777230642092,-500.0,0.00019178,2]
[421192747,1777230642102,-500.0,0.00019178,2]
[421192748,1777230642111,-667.08,0.00019178,2]
[421192750,1777230642121,-500.0,0.00019178,2]
[421192752,1777230642131,-220.59413454,0.00019178,2]
[421192754,1777230642141,-1049.04,0.00019178,2]
[421192756,1777230642151,-4261.46,0.00019178,2]
[421192758,1777230642162,-3861.3,0.00019178,2]
[421192761,1777230642173,-929.63,0.00019178,2]
[421192762,1777230642185,-191.12114263,0.00019178,2]
[421192765,1777230642195,-598.63656238,0.00019178,2]
[421192766,1777230642205,-487.56145655,0.00019178,2]
[421192769,1777230642214,-500.0,0.00019178,2]
[421192771,1777230642224,-581.05253029,0.00019178,2]
[421192773,1777230642234,-1367.03,0.00019178,2]
[421192774,1777230642244,-500.0,0.00019178,2]
[421192777,1777230642254,-694.44,0.00019178,2]
[421192779,1777230642265,-500.0,0.00019178,2]
[421192781,1777230642274,-168.085991,0.00019178,2]
[421192783,1777230642284,-171.111488,0.00019178,2]
[421192784,1777230642294,-1137.96,0.00019178,2]
[421192786,1777230642305,-907.904976,0.00019178,2]
[421192788,1777230642316,-500.0,0.00019178,2]
[421192790,1777230642328,-1419.118124,0.00019178,2]
[421192792,1777230642338,-500.0,0.00019178,2]
[421192794,1777230642349,-500.0,0.00019178,2]
[421192796,1777230642360,-500.0,0.00019178,2]
[421192798,1777230642370,-500.0,0.00019178,2]
[421192801,1777230642380,-1000.0,0.00019178,2]
[421192803,1777230642390,-500.0,0.00019178,2]
[421192805,1777230642402,-500.0,0.00019178,2]
[421192807,1777230642412,-500.0,0.00019178,2]
[421192809,1777230642423,-500.0,0.00019178,2]
[421192811,1777230642433,-500.0,0.00019178,2]
[421192813,1777230642443,-621.92756891,0.00019178,2]
[421192815,1777230642452,-1986.4,0.00019178,2]
[421192817,1777230642462,-500.0,0.00019178,2]
[421192819,1777230642472,-3958.8,0.00019178,2]
[421192821,1777230642482,-500.0,0.00019178,2]
[421192823,1777230642492,-500.0,0.00019178,2]
[421192825,1777230642502,-500.0,0.00019178,2]
[421192827,1777230642512,-500.0,0.00019178,2]
[421192829,1777230642522,-500.0,0.00019178,2]
[421192831,1777230642531,-500.0,0.00019178,2]
[421192833,1777230642541,-500.0,0.00019178,2]